[Event "Belt Road Women 2019"]
[Site "Shaoxing"]
[Date "2019.07.13"]
[Round "6.13"]
[White "Xu, Yuze"]
[Black "Hu, Yu A."]
[Result "1/2-1/2"]
[ECO "B22"]
[WhiteElo "2083"]
[BlackElo "2095"]
[Annotator "NA"]
[PlyCount "40"]
[EventDate "2019.07.08"]
[EventType "swiss"]
[EventCountry "CHN"]
[SourceTitle "playchess.com"]
[Source "ChessBase"]
[SourceQuality "1"]
[TimeControl "5400+30"]

1. e4 {[%emt 0:00:00]} c5 {[%emt 0:00:00]} 2. c3 {[%emt 0:00:00]} Nf6 {[%emt 0:00:34]} 3. e5 {[%emt 0:00:04]} Nd5 {[%emt 0:00:10]} 4. d4 {[%emt 0:00:02]} cxd4 {[%emt 0:00:18]} 5. Nf3 {[%emt 0:00:07]} Nc6 {[%emt 0:00:14]} 6. cxd4 {[%emt 0:00:05]} d6 {[%emt 0:00:15]} 7. Bc4 {[%emt 0:00:24]} Nb6 {[%emt 0:00:39]} 8. Bb5 {[%emt 0:00:10]} Bd7 {[%emt 0:00:13]} 9. Nc3 {[%emt 0:00:38]} d5 {[%emt 0:01:09] B22: Sicilian: 2 c3} (9... a6 10. Be2 Bf5 11. Nh4 Bd7 12. e6 Bxe6 13. d5 Nxd5 14. Nxd5 g5 15. Nf3 h6 16. O-O Bg7 17. Be3 {1-0 (52) Christiansen,J (2486)-Adly,A (2643) Reykjavik 2018}) 10. O-O {[%emt 0:02:51]} e6 {[%emt 0:00:07]} 11. a3 {[%emt 0:05:44]} Be7 {[%emt 0:00:17]} 12. Qe2 {[%emt 0:00:42]} O-O {[%emt 0:00:21]} 13. Be3 $146 {[%emt 0:01:24]} ({Predecessor:} 13. Bd3 f5 14. exf6 Bxf6 15. Bc2 Qe8 16. Qd3 {1-0 (38) Rohl Montes,J (2407)-Blanco Ronquillo,H (2440) Caracas 2014}) 13... Rc8 {[%emt 0:00:34]} 14. Nd2 {[%emt 0:04:38]} Na5 {[%emt 0:02:24]} 15. Bd3 {[%emt 0:03:11]} Nac4 {[%emt 0:00:15]} 16. Nxc4 {[%emt 0:01:27]} Nxc4 {[%emt 0:02:03]} 17. f4 {[%emt 0:05:46]} Nxe3 {[%emt 0:00:42]} 18. Qxe3 {[%emt 0:00:07]} f5 {[%emt 0:00:20]} 19. Rfc1 {[%emt 0:01:27]} Qb6 {[%emt 0:00:22]} 20. b4 {[%emt 0:04:28]} Rc7 $11 {[%emt 0:02:12]} 1/2-1/2

[Event "Belt Road Women 2019"]
[Site "Shaoxing"]
[Date "2019.07.13"]
[Round "6.15"]
[White "Zhou, Yafei"]
[Black "Fominykh, Maria"]
[Result "1/2-1/2"]
[ECO "E92"]
[WhiteElo "1720"]
[BlackElo "2243"]
[Annotator "ChessBase"]
[PlyCount "52"]
[EventDate "2019.07.08"]
[EventType "swiss"]
[EventCountry "CHN"]
[SourceTitle "playchess.com"]
[Source "ChessBase"]
[SourceQuality "1"]
[TimeControl "5400+30"]

1. d4 {[%emt 0:00:00]} d6 {[%emt 0:00:00]} 2. Nf3 {[%emt 0:01:02]} Nf6 {[%emt 0:00:00]} 3. c4 {[%emt 0:00:12]} g6 {[%emt 0:00:00]} 4. Nc3 {[%emt 0:00:13]} Bg7 {[%emt 0:00:00]} 5. e4 {[%emt 0:00:14]} O-O {[%emt 0:00:00]} 6. Be2 {[%emt 0:00:08]} e5 {[%emt 0:00:59]} 7. dxe5 {[%emt 0:00:07]} dxe5 {[%emt 0:00:15]} 8. Qxd8 {[%emt 0:00:06]} Rxd8 {[%emt 0:00:03]} 9. Bg5 {[%emt 0:00:07]} Re8 {[%emt 0:00:51]} 10. Nd5 {[%emt 0:02:51]} Nxd5 {[%emt 0:00:04]} 11. cxd5 {[%emt 0:00:06]} c6 {[%emt 0:00:16]} 12. Bc4 {[%emt 0:00:49]} cxd5 {[%emt 0:11:59]} 13. Bxd5 {[%emt 0:00:08]} Nc6 {[%emt 0:01:38]} 14. O-O {[%emt 0:08:29]} Be6 {[%emt 0:30:43]} 15. Bxe6 {[%emt 0:16:02]} Rxe6 {[%emt 0:00:13]} 16. Rfd1 {[%emt 0:02:36]} Nd4 {[%emt 0:06:05]} 17. Be3 {[%emt 0:09:40]} Rd8 {[%emt 0:04:55]} 18. Kf1 {[%emt 0:06:03]} f5 {[%emt 0:10:57]} 19. exf5 {[%emt 0:02:42]} gxf5 {[%emt 0:00:03]} 20. Bxd4 {[%emt 0:04:15]} exd4 {[%emt 0:00:34]} 21. Rd3 {[%emt 0:00:22]} Rc6 {[%emt 0:14:48]} 22. Rad1 {[%emt 0:09:52]} Rc2 {[%emt 0:00:56]} 23. Nxd4 {[%emt 0:03:57]} Bxd4 {[%emt 0:01:02]} 24. Rxd4 {[%emt 0:00:07]} Rxd4 {[%emt 0:00:11]} 25. Rxd4 {[%emt 0:00:15]} Rxb2 {[%emt 0:00:02]} 26. Rd7 {[%emt 0:10:36]} a5 {[%emt 0:02:54]} 1/2-1/2

[Event "Belt Road Women 2019"]
[Site "Shaoxing"]
[Date "2019.07.13"]
[Round "6.16"]
[White "Zhang, Yuxuan"]
[Black "Zhang, Xiao"]
[Result "0-1"]
[ECO "C55"]
[WhiteElo "1987"]
[BlackElo "2259"]
[Annotator "ChessBase"]
[PlyCount "62"]
[EventDate "2019.07.08"]
[EventType "swiss"]
[EventCountry "CHN"]
[SourceTitle "playchess.com"]
[Source "ChessBase"]
[SourceQuality "1"]
[TimeControl "5400+30"]

1. e4 {[%emt 0:00:00]} e5 {[%emt 0:00:00]} 2. Nf3 {[%emt 0:00:00]} Nc6 {[%emt 0:00:00]} 3. Bc4 {[%emt 0:00:00]} Nf6 {[%emt 0:00:00]} 4. d3 {[%emt 0:00:00]} h6 {[%emt 0:00:00]} 5. O-O {[%emt 0:00:12]} d6 {[%emt 0:00:03]} 6. a4 {[%emt 0:00:19]} g5 {[%emt 0:00:35]} 7. c3 {[%emt 0:01:24]} Bg7 {[%emt 0:00:06]} 8. Na3 {[%emt 0:04:21]} O-O {[%emt 0:00:11]} 9. Nc2 {[%emt 0:00:51]} Ne7 {[%emt 0:00:29]} 10. Ne3 {[%emt 0:06:15]} c6 {[%emt 0:00:46]} 11. Bb3 {[%emt 0:00:43]} Ng6 {[%emt 0:03:37]} 12. Bc2 {[%emt 0:02:09]} Re8 {[%emt 0:09:56]} 13. a5 {[%emt 0:03:37]} d5 {[%emt 0:05:26]} 14. Re1 {[%emt 0:09:28]} g4 {[%emt 0:09:31]} 15. Nd2 {[%emt 0:00:15]} h5 {[%emt 0:00:07]} 16. Ndf1 {[%emt 0:06:21]} Nf4 {[%emt 0:03:39]} 17. exd5 {[%emt 0:05:12]} cxd5 {[%emt 0:00:51]} 18. Ng3 {[%emt 0:00:39]} Bh6 {[%emt 0:07:05]} 19. d4 {[%emt 0:06:10]} e4 {[%emt 0:03:25]} 20. c4 {[%emt 0:01:51]} h4 {[%emt 0:10:16]} 21. Nef5 {[%emt 0:02:05]} Bg5 {[%emt 0:05:35]} 22. Nxh4 {[%emt 0:03:13]} Nh3+ {[%emt 0:01:35]} 23. gxh3 {[%emt 0:00:07]} Bxh4 {[%emt 0:00:04]} 24. Qd2 {[%emt 0:01:35]} gxh3 {[%emt 0:01:45]} 25. cxd5 {[%emt 0:01:19]} Qxd5 {[%emt 0:04:34]} 26. Qf4 {[%emt 0:02:27]} e3 {[%emt 0:05:23]} 27. f3 {[%emt 0:01:56]} Bg5 {[%emt 0:00:23]} 28. Qc7 {[%emt 0:00:08]} Qxf3 {[%emt 0:00:14]} 29. Re2 {[%emt 0:00:06]} Bf4 {[%emt 0:00:46]} 30. Qc5 {[%emt 0:00:35]} Be6 {[%emt 0:01:42]} 31. Bd1 {[%emt 0:03:07]} Bd5 {[%emt 0:00:56]} 0-1

[Event "Belt Road Women 2019"]
[Site "Shaoxing"]
[Date "2019.07.13"]
[Round "6.17"]
[White "Peng, Tianlu"]
[Black "Yan, Tianqi"]
[Result "1-0"]
[ECO "B22"]
[WhiteElo "1901"]
[BlackElo "2034"]
[Annotator "NA"]
[PlyCount "151"]
[EventDate "2019.07.08"]
[EventType "swiss"]
[EventCountry "CHN"]
[SourceTitle "playchess.com"]
[Source "ChessBase"]
[SourceQuality "1"]
[TimeControl "5400+30"]

1. e4 {[%emt 0:00:00]} c5 {[%emt 0:00:00]} 2. c3 {[%emt 0:00:00]} Nf6 {[%emt 0:00:00]} 3. e5 {[%emt 0:00:00]} Nd5 {[%emt 0:00:02]} 4. Nf3 {[%emt 0:00:00]} e6 {[%emt 0:00:32]} 5. d4 {[%emt 0:00:02]} cxd4 {[%emt 0:00:09]} 6. cxd4 {[%emt 0:00:02]} d6 {[%emt 0:00:08]} 7. Bc4 {[%emt 0:00:07]} Nb6 {[%emt 0:00:26]} 8. Bd3 {[%emt 0:00:08]} Nc6 {[%emt 0:04:02]} 9. Nc3 {[%emt 0:00:26]} Be7 {[%emt 0:06:54]} 10. exd6 {[%emt 0:02:34]} Bxd6 {[%emt 0:01:55]} 11. O-O {[%emt 0:01:22]} Ne7 {[%emt 0:14:42]} 12. Ng5 {[%emt 0:05:01]} Ned5 {[%emt 0:15:23]} 13. Qh5 {[%emt 0:03:29]} Qe7 {[%emt 0:01:38]} (13... g6 $142 14. Qh3 a6) 14. Nce4 {[%emt 0:08:42]} Bf4 {[%emt 0:06:24]} 15. g3 {[%emt 0:07:21]} Bc7 {[%emt 0:03:05]} 16. Bd2 {[%emt 0:12:30]} (16. Nxh7 $18 Qf8 17. Neg5) 16... Bd7 {[%emt 0:02:38]} 17. Rac1 {[%emt 0:03:14]} Bc6 $16 {[%emt 0:01:48]} 18. b4 {[%emt 0:05:06]} a6 {[%emt 0:00:28]} 19. Rfe1 {[%emt 0:01:00]} g6 {[%emt 0:02:12]} 20. Qh3 {[%emt 0:03:12]} h6 {[%emt 0:07:57]} 21. Nc5 {[%emt 0:05:18]} O-O-O {[%emt 0:00:55]} 22. Ngxe6 {[%emt 0:07:50]} fxe6 {[%emt 0:00:14]} 23. Rxe6 {[%emt 0:12:16]} Bd7 {[%emt 0:00:18]} 24. Rce1 {[%emt 0:03:00]} Qg7 {[%emt 0:03:06]} 25. Nxd7 {[%emt 0:01:19]} Nxd7 {[%emt 0:01:40]} 26. Qg4 {[%emt 0:04:54]} h5 {[%emt 0:04:01]} 27. Qe4 {[%emt 0:01:09]} N7f6 {[%emt 0:01:00]} 28. Qxg6 {[%emt 0:02:53]} Qxg6 {[%emt 0:01:06]} 29. Bxg6 {[%emt 0:00:03]} Rhg8 {[%emt 0:00:12]} 30. Bf5 {[%emt 0:00:42]} Kb8 {[%emt 0:00:08]} 31. Kf1 {[%emt 0:02:09]} Rdf8 {[%emt 0:00:56]} 32. Bh6 {[%emt 0:01:35]} Rf7 {[%emt 0:01:37]} 33. R6e2 {[%emt 0:00:14]} Rh8 {[%emt 0:01:37]} 34. Be6 {[%emt 0:00:38]} Rfh7 {[%emt 0:01:21]} 35. Bg5 {[%emt 0:00:42]} Bd8 {[%emt 0:01:38]} 36. Bxd5 {[%emt 0:01:36]} Nxd5 {[%emt 0:00:29]} 37. Re8 {[%emt 0:00:14]} Kc8 {[%emt 0:00:05]} 38. Bxd8 {[%emt 0:00:41]} Rxe8 {[%emt 0:00:04]} 39. Rxe8 {[%emt 0:00:07]} Kd7 {[%emt 0:00:03]} 40. Rf8 {[%emt 0:02:48]} Nxb4 {[%emt 0:00:08]} 41. a4 {[%emt 0:00:27]} Nc6 {[%emt 0:02:30]} 42. Bb6 {[%emt 0:00:38]} Ne7 {[%emt 0:00:23]} 43. Rf6 {[%emt 0:00:29]} Nd5 {[%emt 0:00:21]} 44. Rg6 {[%emt 0:00:14]} Nxb6 {[%emt 0:01:41]} 45. Rxb6 {[%emt 0:00:05]} Kc7 {[%emt 0:00:07]} 46. Rb4 {[%emt 0:00:28]} b6 {[%emt 0:01:21]} 47. Ke2 {[%emt 0:00:23]} Kc6 {[%emt 0:00:16]} 48. f4 {[%emt 0:00:52]} Rh6 {[%emt 0:00:38]} 49. h3 {[%emt 0:00:45]} Kd5 {[%emt 0:00:08]} 50. Kf3 {[%emt 0:00:21]} Rc6 {[%emt 0:01:43]} 51. f5 {[%emt 0:00:18]} a5 {[%emt 0:03:04]} 52. Rb5+ {[%emt 0:00:26]} Kxd4 {[%emt 0:00:45]} 53. Kf4 {[%emt 0:00:10]} Rc1 {[%emt 0:00:38]} 54. Kg5 {[%emt 0:01:35]} Rc3 {[%emt 0:00:14]} 55. g4 {[%emt 0:01:35]} Rxh3 {[%emt 0:00:07]} 56. gxh5 {[%emt 0:00:33]} Rg3+ {[%emt 0:00:05]} 57. Kf4 {[%emt 0:00:42]} Rg1 {[%emt 0:00:19]} 58. Rxb6 {[%emt 0:00:28]} Kd5 {[%emt 0:00:28]} 59. Rb5+ {[%emt 0:00:26]} Kd6 {[%emt 0:00:04]} 60. Rxa5 {[%emt 0:00:10]} Ke7 {[%emt 0:00:11]} 61. Ra7+ {[%emt 0:00:21]} Kf6 {[%emt 0:00:09]} 62. Ra6+ {[%emt 0:00:06]} Kf7 {[%emt 0:00:06]} 63. h6 {[%emt 0:01:08]} Rf1+ {[%emt 0:00:10]} 64. Ke5 {[%emt 0:00:12]} Re1+ {[%emt 0:00:06]} 65. Kd6 {[%emt 0:00:22]} Rd1+ {[%emt 0:01:08]} 66. Kc7 {[%emt 0:00:11]} Rf1 {[%emt 0:00:14]} 67. f6 {[%emt 0:02:49]} Rh1 {[%emt 0:02:20]} 68. a5 {[%emt 0:00:40]} Rxh6 {[%emt 0:00:12]} 69. Rc6 {[%emt 0:00:25]} Rh1 {[%emt 0:02:57]} 70. a6 {[%emt 0:00:08]} Ra1 {[%emt 0:00:11]} 71. Kb7 {[%emt 0:00:07]} Rb1+ {[%emt 0:00:05]} 72. Rb6 {[%emt 0:00:08]} Rd1 {[%emt 0:00:07]} 73. a7 {[%emt 0:00:43]} Rd7+ {[%emt 0:00:06]} 74. Kb8 {[%emt 0:00:06]} Rd8+ {[%emt 0:00:14]} 75. Kc7 {[%emt 0:00:13]} Ra8 {[%emt 0:00:52]} 76. Kb7 {[%emt 0:00:10]} 1-0

[Event "Belt Road Women 2019"]
[Site "Shaoxing"]
[Date "2019.07.15"]
[Round "7.7"]
[White "Ni, Shiqun"]
[Black "Zhu, Jiner"]
[Result "1/2-1/2"]
[ECO "B51"]
[WhiteElo "2407"]
[BlackElo "2454"]
[Annotator "RC"]
[PlyCount "57"]
[EventDate "2019.07.08"]
[EventType "swiss"]
[EventCountry "CHN"]
[SourceTitle "playchess.com"]
[Source "ChessBase"]
[SourceQuality "1"]
[TimeControl "5400+30"]

1. e4 {[%emt 0:00:00]} c5 {[%emt 0:00:00]} 2. Nf3 {[%emt 0:00:00]} d6 {[%emt 0:00:00]} 3. Bb5+ {[%emt 0:00:02]} Nd7 {[%emt 0:00:00]} 4. O-O {[%emt 0:00:30]} a6 {[%emt 0:00:00]} 5. Bd3 {[%emt 0:00:30]} Ngf6 {[%emt 0:00:28]} 6. Re1 {[%emt 0:00:30]} b5 {[%emt 0:00:30]} 7. c4 {[%emt 0:00:30]} Ne5 {[%emt 0:00:30]} 8. Bf1 {[%emt 0:00:30]} Nxc4 {[%emt 0:00:30]} 9. a4 {[%emt 0:00:30]} Bd7 {[%emt 0:00:30]} 10. d4 {[%emt 0:00:30]} cxd4 {[%emt 0:00:30]} 11. Nxd4 {[%emt 0:00:30]} g6 {[%emt 0:00:30]} 12. axb5 {[%emt 0:00:30]} axb5 {[%emt 0:00:30]} 13. Rxa8 {[%emt 0:00:30]} Qxa8 {[%emt 0:00:30]} 14. Nc3 {[%emt 0:00:30]} Qc8 {[%emt 0:00:30]} 15. Ndxb5 {[%emt 0:00:30]} Bg7 {[%emt 0:00:30]} 16. Qe2 {[%emt 0:00:30]} Ne5 {[%emt 0:00:30]} 17. Bg5 {[%emt 0:00:30]} O-O {[%emt 0:00:30]} 18. h3 {[%emt 0:00:30]} Be6 {[%emt 0:00:30]} 19. Ra1 {[%emt 0:00:30]} h6 {[%emt 0:00:30]} 20. Be3 {[%emt 0:00:30]} Bc4 {[%emt 0:00:30]} 21. Qd1 {[%emt 0:00:30]} Bxf1 {[%emt 0:00:30]} 22. Qxf1 {[%emt 0:00:30]} Nc4 {[%emt 0:00:30]} 23. Qe2 {[%emt 0:00:30]} Nxe3 {[%emt 0:00:30]} 24. Qxe3 {[%emt 0:00:30]} Qc6 {[%emt 0:00:30]} 25. Ra7 {[%emt 0:00:30]} Rb8 {[%emt 0:00:30]} 26. Rc7 {[%emt 0:00:30]} Qa6 {[%emt 0:00:30]} 27. Ra7 {[%emt 0:00:30]} Qc6 {[%emt 1:20:54]} 28. Rc7 {[%emt 0:00:30]} Qa6 {[%emt 0:00:30]} 29. Ra7 {[%emt 0:00:30]} 1/2-1/2

[Event "Belt Road Women 2019"]
[Site "Shaoxing"]
[Date "2019.07.15"]
[Round "7.14"]
[White "Gu, Tianlu"]
[Black "Zhou, Yafei"]
[Result "1-0"]
[ECO "D02"]
[WhiteElo "2205"]
[BlackElo "1720"]
[Annotator "RC"]
[PlyCount "176"]
[EventDate "2019.07.08"]
[EventType "swiss"]
[EventCountry "CHN"]
[SourceTitle "playchess.com"]
[Source "ChessBase"]
[SourceQuality "1"]
[TimeControl "5400+30"]

1. d4 {[%emt 0:00:00]} Nf6 {[%emt 0:00:21]} 2. Nf3 {[%emt 0:02:34]} g6 {[%emt 0:01:40]} 3. Bf4 {[%emt 0:00:53]} Bg7 {[%emt 0:01:28]} 4. c3 {[%emt 0:00:21]} d5 {[%emt 0:00:22]} 5. h3 {[%emt 0:03:13]} c6 {[%emt 0:08:51]} 6. e3 {[%emt 0:00:30]} Nbd7 {[%emt 0:00:30]} 7. Bd3 {[%emt 0:00:30]} O-O {[%emt 0:00:30]} 8. Nbd2 {[%emt 0:00:30]} Re8 {[%emt 0:00:30]} 9. Bh2 {[%emt 0:00:30]} b6 {[%emt 0:00:30]} 10. O-O {[%emt 0:00:30]} Bb7 {[%emt 0:00:30]} 11. a4 {[%emt 0:00:30]} a5 {[%emt 0:00:30]} 12. b4 {[%emt 0:00:30]} Ba6 {[%emt 0:00:30]} 13. b5 {[%emt 0:00:30]} cxb5 {[%emt 0:00:30]} 14. Qe2 {[%emt 0:00:30]} Rc8 {[%emt 0:00:30]} 15. Rfc1 {[%emt 0:00:30]} e6 {[%emt 0:00:30]} 16. Rab1 {[%emt 0:00:30]} Qe7 {[%emt 0:00:30]} 17. Bxb5 {[%emt 0:00:30]} Bxb5 {[%emt 0:00:30]} 18. Qxb5 {[%emt 0:00:30]} Red8 {[%emt 0:00:30]} 19. c4 {[%emt 0:00:30]} h6 {[%emt 0:00:30]} 20. Ne5 {[%emt 0:00:30]} Nxe5 {[%emt 0:00:30]} 21. Bxe5 {[%emt 0:00:30]} Qa3 {[%emt 0:00:30]} 22. Qxb6 {[%emt 0:00:30]} Nd7 {[%emt 0:00:30]} 23. Qd6 {[%emt 0:00:30]} Qd3 {[%emt 0:00:30]} 24. Bxg7 {[%emt 0:00:30]} Kxg7 {[%emt 0:00:30]} 25. Nf3 {[%emt 0:00:30]} Nf6 {[%emt 0:00:30]} 26. Qb6 {[%emt 0:00:30]} dxc4 {[%emt 0:00:30]} 27. Ne5 {[%emt 0:00:30]} Qf5 {[%emt 0:00:30]} 28. Qxa5 {[%emt 0:00:30]} Ne4 {[%emt 0:00:30]} 29. f3 {[%emt 0:00:30]} Nd6 {[%emt 0:00:30]} 30. Qc3 {[%emt 0:00:30]} h5 {[%emt 0:00:30]} 31. Nc6 {[%emt 0:00:30]} Re8 {[%emt 0:00:30]} 32. e4 {[%emt 0:55:36]} Qf4 33. Rb6 {[%emt 0:00:30]} Kh7 {[%emt 1:19:58]} 34. Re1 {[%emt 0:01:28]} Rc7 {[%emt 0:10:05]} 35. Nb4 {[%emt 0:00:28]} Nc8 {[%emt 0:00:10]} 36. Rb5 {[%emt 0:00:39]} Nd6 {[%emt 0:00:24]} 37. Rc5 {[%emt 0:00:21]} Rec8 {[%emt 0:01:45]} 38. Rxc7 {[%emt 0:00:07]} Rxc7 {[%emt 0:00:09]} 39. d5 {[%emt 0:10:33]} e5 {[%emt 0:00:00]} 40. Nc6 {[%emt 0:00:20]} Qg3 {[%emt 0:00:00]} 41. Rc1 {[%emt 0:00:59]} f6 {[%emt 0:00:00]} 42. Qe1 {[%emt 0:02:35]} Qxe1+ {[%emt 0:00:00]} 43. Rxe1 {[%emt 0:00:05]} Rb7 {[%emt 0:00:00]} 44. a5 {[%emt 0:00:51]} Rb2 {[%emt 0:00:00]} 45. a6 {[%emt 0:00:15]} Ra2 {[%emt 0:00:00]} 46. a7 {[%emt 0:00:20]} c3 {[%emt 0:00:00]} 47. Rc1 {[%emt 0:01:25]} Nb5 {[%emt 0:00:00]} 48. d6 {[%emt 0:01:37]} Nxa7 {[%emt 0:00:00]} 49. Nxa7 {[%emt 0:05:13]} Rxa7 {[%emt 0:00:00]} 50. Rxc3 {[%emt 0:00:05]} Ra1+ {[%emt 0:00:00]} 51. Kf2 {[%emt 0:00:13]} Rd1 {[%emt 0:00:00]} 52. Rc7+ {[%emt 0:01:52]} Kh6 {[%emt 0:00:00]} 53. Rd7 {[%emt 0:01:13]} h4 {[%emt 0:00:00]} 54. Ke2 {[%emt 0:00:18]} Rd4 {[%emt 0:00:00]} 55. Rd8 {[%emt 0:01:21]} Kg5 {[%emt 0:00:00]} 56. d7 {[%emt 0:00:45]} Rd6 {[%emt 0:00:00]} 57. Ke3 {[%emt 0:01:11]} Rd1 {[%emt 0:00:00]} 58. g3 {[%emt 0:00:45]} f5 {[%emt 0:00:06]} 59. gxh4+ {[%emt 0:03:01]} Kf6 {[%emt 0:00:16]} 60. exf5 {[%emt 0:00:13]} gxf5 {[%emt 0:00:28]} 61. Rf8+ {[%emt 0:00:10]} Ke7 {[%emt 0:00:13]} 62. Re8+ {[%emt 0:00:43]} Kxd7 {[%emt 0:00:11]} 63. Rxe5 {[%emt 0:00:05]} Rh1 {[%emt 0:00:20]} 64. Rxf5 {[%emt 0:00:44]} Rxh3 {[%emt 0:00:05]} 65. Rf4 {[%emt 0:00:20]} Ke6 {[%emt 0:00:14]} 66. Kf2 {[%emt 0:00:06]} Rh1 {[%emt 0:00:19]} 67. Kg2 {[%emt 0:00:16]} Ra1 {[%emt 0:00:12]} 68. h5 {[%emt 0:00:57]} Ra5 {[%emt 0:00:12]} 69. Rh4 {[%emt 0:00:07]} Kf7 {[%emt 0:01:10]} 70. h6 {[%emt 0:00:28]} Kg8 {[%emt 0:00:09]} 71. h7+ {[%emt 0:00:09]} Kh8 {[%emt 0:00:11]} 72. Kg3 {[%emt 0:00:04]} Rb5 {[%emt 0:01:04]} 73. Kg4 {[%emt 0:00:07]} Ra5 {[%emt 0:00:23]} 74. f4 {[%emt 0:00:11]} Ra6 {[%emt 0:00:31]} 75. Kg5 {[%emt 0:00:34]} Rg6+ {[%emt 0:00:58]} 76. Kf5 {[%emt 0:00:06]} Rf6+ {[%emt 0:00:09]} 77. Ke5 {[%emt 0:00:05]} Ra6 {[%emt 0:00:08]} 78. f5 {[%emt 0:00:56]} Rb6 {[%emt 0:00:15]} 79. Rh3 {[%emt 0:02:07]} Ra6 {[%emt 0:00:13]} 80. Rd3 {[%emt 0:04:38]} Kxh7 {[%emt 0:00:45]} 81. Rd6 {[%emt 0:00:15]} Ra1 {[%emt 0:01:09]} 82. Ke6 {[%emt 0:01:23]} Kg7 {[%emt 0:01:24]} 83. Rd7+ {[%emt 0:00:18]} Kf8 {[%emt 0:01:00]} 84. Rd8+ {[%emt 0:00:08]} Kg7 {[%emt 0:00:16]} 85. f6+ {[%emt 0:00:12]} Kg6 {[%emt 0:00:33]} 86. Rg8+ {[%emt 0:00:40]} Kh7 {[%emt 0:00:35]} 87. f7 {[%emt 0:00:21]} Ra6+ {[%emt 0:00:27]} 88. Kd5 {[%emt 0:00:46]} Ra5+ {[%emt 0:00:37]} 1-0

[Event "Belt Road Women 2019"]
[Site "Shaoxing"]
[Date "2019.07.15"]
[Round "7.16"]
[White "Song, Yuxin"]
[Black "Zhang, Yuxuan"]
[Result "1-0"]
[ECO "B07"]
[WhiteElo "2277"]
[BlackElo "1987"]
[Annotator "RC"]
[PlyCount "105"]
[EventDate "2019.07.08"]
[EventType "swiss"]
[EventCountry "CHN"]
[SourceTitle "playchess.com"]
[Source "ChessBase"]
[SourceQuality "1"]
[TimeControl "5400+30"]

1. d4 {[%emt 0:00:00]} Nf6 {[%emt 0:00:00]} 2. Nf3 {[%emt 0:00:00]} g6 {[%emt 0:00:00]} 3. Nbd2 {[%emt 0:00:00]} Bg7 {[%emt 0:00:17]} 4. e4 {[%emt 0:00:06]} d6 {[%emt 0:00:19]} 5. Bb5+ {[%emt 0:00:07]} c6 {[%emt 0:00:41]} 6. Bd3 {[%emt 0:00:08]} O-O {[%emt 0:00:24]} 7. O-O {[%emt 0:00:10]} Bd7 {[%emt 0:01:45]} 8. Re1 Qc7 {[%emt 0:04:42]} 9. c3 {[%emt 0:13:20]} a5 {[%emt 0:02:20]} 10. h3 {[%emt 0:07:05]} Rd8 {[%emt 0:05:11]} 11. Nf1 {[%emt 0:04:41]} c5 {[%emt 0:03:58]} 12. Be3 {[%emt 0:09:18]} c4 {[%emt 0:04:48]} 13. Bc2 {[%emt 0:00:43]} b5 {[%emt 0:00:17]} 14. Qd2 {[%emt 0:02:48]} Na6 {[%emt 0:03:49]} 15. Bf4 {[%emt 0:03:42]} Bc6 {[%emt 0:04:38]} 16. Ng3 {[%emt 0:03:59]} e5 {[%emt 0:07:20]} 17. Bg5 {[%emt 0:02:32]} Re8 {[%emt 0:03:23]} 18. d5 {[%emt 0:05:28]} Bd7 {[%emt 0:00:19]} 19. Nh2 {[%emt 0:00:13]} b4 {[%emt 0:06:35]} 20. h4 {[%emt 0:06:23]} Ng4 {[%emt 0:09:22]} 21. Nxg4 {[%emt 0:09:00]} Bxg4 {[%emt 0:00:09]} 22. Nf1 {[%emt 0:00:07]} Rab8 {[%emt 0:02:22]} 23. Ne3 {[%emt 0:07:40]} Bd7 {[%emt 0:00:10]} 24. h5 {[%emt 0:00:33]} a4 {[%emt 0:03:39]} 25. hxg6 {[%emt 0:04:39]} hxg6 {[%emt 0:00:12]} 26. Rec1 {[%emt 0:01:11]} a3 {[%emt 0:02:20]} 27. b3 {[%emt 0:00:13]} cxb3 {[%emt 0:02:42]} 28. Bxb3 {[%emt 0:00:00]} bxc3 {[%emt 0:00:46]} 29. Rxc3 {[%emt 0:02:24]} Nc5 {[%emt 0:00:17]} 30. Bc2 {[%emt 0:00:01]} Rb2 {[%emt 0:00:56]} 31. Nd1 {[%emt 0:01:12]} Qa5 {[%emt 0:12:39]} 32. Qe3 {[%emt 0:01:06]} Rb4 {[%emt 0:05:22]} 33. Rxa3 {[%emt 0:00:17]} Qb5 {[%emt 0:00:13]} 34. Rc3 {[%emt 0:03:14]} f5 {[%emt 0:02:59]} 35. a3 {[%emt 0:00:15]} Rd4 {[%emt 0:02:31]} 36. f3 {[%emt 0:02:48]} f4 {[%emt 0:02:19]} 37. Qf2 {[%emt 0:02:20]} Qa5 {[%emt 0:00:31]} 38. Rc1 {[%emt 0:00:57]} Bb5 {[%emt 0:01:56]} 39. g3 {[%emt 0:04:39]} Bd3 {[%emt 0:01:57]} 40. Rb1 {[%emt 0:03:06]} fxg3 {[%emt 0:00:21]} 41. Qxg3 {[%emt 0:00:41]} Bxc2 {[%emt 0:00:08]} 42. Rxc2 {[%emt 0:00:00]} Qxa3 {[%emt 0:00:28]} 43. Bh6 {[%emt 0:00:50]} Kh7 {[%emt 0:04:32]} 44. Bxg7 {[%emt 0:00:17]} Kxg7 {[%emt 0:00:13]} 45. Rg2 {[%emt 0:00:08]} Rxd1+ {[%emt 0:00:56]} 46. Rxd1 {[%emt 0:00:07]} Qe3+ {[%emt 0:00:07]} 47. Kf1 {[%emt 0:01:06]} Qh6 {[%emt 0:00:24]} 48. Qg5 {[%emt 0:02:33]} Qxg5 {[%emt 0:00:23]} 49. Rxg5 {[%emt 0:00:02]} Kh6 {[%emt 0:00:09]} 50. Rg2 {[%emt 0:00:19]} Rb8 {[%emt 0:00:07]} 51. Kf2 {[%emt 0:00:30]} Rb2+ {[%emt 0:00:11]} 52. Kg3 {[%emt 0:00:01]} Kg5 {[%emt 0:00:22]} 53. Rxb2 {[%emt 0:00:03]} 1-0

[Event "Belt Road Women 2019"]
[Site "Shaoxing"]
[Date "2019.07.16"]
[Round "8.16"]
[White "Xu, Yuze"]
[Black "Peng, Tianlu"]
[Result "1-0"]
[ECO "B14"]
[WhiteElo "2083"]
[BlackElo "1901"]
[Annotator "NA RC"]
[PlyCount "61"]
[EventDate "2019.07.08"]
[EventType "swiss"]
[EventCountry "CHN"]
[SourceTitle "playchess.com"]
[Source "ChessBase"]
[SourceQuality "1"]
[TimeControl "5400+30"]

1. e4 {[%emt 0:00:00]} c6 {[%emt 0:00:00]} 2. d4 {[%emt 0:00:00]} d5 {[%emt 0:00:01]} 3. exd5 {[%emt 0:00:00]} cxd5 {[%emt 0:00:01]} 4. c4 {[%emt 0:00:00]} Nf6 {[%emt 0:00:04]} 5. Nc3 {[%emt 0:00:13]} g6 {[%emt 0:00:14]} 6. Bg5 {[%emt 0:05:04]} Nbd7 {[%emt 0:02:53]} 7. cxd5 {[%emt 0:19:04]} Bg7 {[%emt 0:00:41]} 8. d6 {[%emt 0:04:06]} exd6 {[%emt 0:03:36]} 9. Qe2+ {[%emt 0:00:44]} Qe7 {[%emt 0:04:31]} 10. Nb5 {[%emt 0:01:39]} Qxe2+ {[%emt 0:04:26]} 11. Nxe2 {[%emt 0:00:38]} Ke7 {[%emt 0:05:47]} 12. Nec3 {[%emt 0:01:15]} Nb6 {[%emt 0:00:32]} 13. Nc7 {[%emt 0:03:27]} Rb8 {[%emt 0:02:10]} 14. a4 {[%emt 0:01:16]} Kd7 {[%emt 0:01:47]} 15. a5 {[%emt 0:00:34]} Kxc7 {[%emt 0:02:07]} 16. axb6+ {[%emt 0:00:19]} Kxb6 {[%emt 0:00:42]} 17. Bxf6 {[%emt 0:00:13]} Re8+ {[%emt 0:01:40]} 18. Be2 {[%emt 0:00:18]} Bh6 {[%emt 0:05:57]} 19. O-O {[%emt 0:00:42]} a6 {[%emt 0:00:55]} 20. Bf3 {[%emt 0:02:39]} Bf5 {[%emt 0:02:07]} 21. Nd5+ {[%emt 0:00:25]} Ka7 {[%emt 0:00:58]} 22. Nc7 {[%emt 0:00:32]} Bd3 {[%emt 0:02:29]} 23. Nxe8 {[%emt 0:00:34]} Bxf1 {[%emt 0:00:27]} 24. Nxd6 {[%emt 0:00:12]} Bd3 {[%emt 0:01:01]} 25. Nxf7 {[%emt 0:00:25]} Rf8 {[%emt 0:01:23]} 26. Nxh6 {[%emt 0:00:30]} Rxf6 {[%emt 0:00:04]} 27. Rd1 {[%emt 0:00:10]} Bc2 {[%emt 0:03:29]} 28. Rd2 {[%emt 0:00:07]} Re6 {[%emt 0:00:39]} 29. h3 {[%emt 0:00:33]} Ba4 {[%emt 0:00:16]} 30. d5 {[%emt 0:00:07]} Re1+ {[%emt 0:01:17]} 31. Kh2 {[%emt 0:00:05]} 1-0